bitfinex-derivatives/quotes_BTCF0:USTF0_20251228
["timestamp","ask_amount","ask_price","bid_price","bid_amount"]
[1766948976830,0.05716,87662.0,87641.0,0.04481783]
[1766948977032,0.0114155,87661.0,87641.0,0.04481783]
[1766948979135,0.00022837,87667.0,87642.0,0.09708]
[1766948979331,0.06149749,87668.0,87642.0,0.09708]
[1766948979332,0.07290979,87686.0,87661.0,0.0114155]
[1766948979527,0.05716,87686.0,87664.0,0.0114151]
[1766948979726,0.05716,87686.0,87667.0,0.0114147]
[1766948979920,0.05716,87686.0,87670.0,0.0114143]
[1766948980128,1e-08,87683.0,87673.0,0.0114139]
[1766948980328,1e-08,87683.0,87669.0,0.0114144]
[1766948980731,1e-08,87683.0,87672.0,0.0114141]
[1766948980934,0.0114121,87688.0,87668.0,0.0114145]
[1766948981633,0.05716,87689.0,87663.0,0.00017109]
[1766948982031,0.05716,87689.0,87670.0,0.0114142]
[1766948982626,0.05716,87689.0,87673.0,0.0114139]
[1766948984237,0.05716,87690.0,87663.0,0.00017109]
[1766948984436,0.05716,87691.0,87676.0,0.0114135]
[1766948986132,0.05716,87691.0,87672.0,0.011414]
[1766948992255,0.09704,87694.0,87674.0,0.0114137]
[1766948992449,0.09704,87694.0,87675.0,0.09704]
[1766948992753,0.1084512,87694.0,87675.0,0.09704]
[1766948993250,0.0114115,87692.0,87675.0,0.09704]
[1766948993441,0.0114119,87689.0,87675.0,0.09704]
[1766948994652,0.09704,87694.0,87675.0,0.09704]
[1766948997352,0.011412,87688.0,87675.0,0.09704]
[1766948999953,0.09704,87698.0,87680.0,0.011413]
[1766949000156,0.09704,87698.0,87686.0,0.0114122]
[1766949000544,0.05716,87700.0,87686.0,0.0114122]
[1766949000752,0.05716,87700.0,87682.0,0.0685727]
[1766949001152,0.0114104,87701.0,87682.0,0.0685727]
[1766949001661,0.0114099,87704.0,87685.0,0.0114124]
[1766949001848,0.0114099,87704.0,87686.0,0.09704]
[1766949002249,0.0114099,87704.0,87687.0,0.0114121]
[1766949002847,0.0114095,87707.0,87689.0,0.0114117]
[1766949003048,0.0114091,87710.0,87692.0,0.0114115]
[1766949003350,0.0114095,87708.0,87689.0,0.0114119]
[1766949005255,0.0114095,87708.0,87687.0,0.0114121]
[1766949005651,0.0114095,87708.0,87687.0,0.12543913]
[1766949005961,0.0114092,87710.0,87687.0,0.12543913]
[1766949006458,0.0114097,87706.0,87688.0,0.1542]
[1766949006860,0.0114091,87710.0,87688.0,0.1542]
[1766949008656,0.0114091,87710.0,87689.0,0.0114119]
[1766949008855,0.00022825,87711.0,87692.0,0.0114114]
[1766949009850,0.00022825,87711.0,87693.0,0.11402313]
[1766949012061,0.00022825,87711.0,87694.0,0.0114112]
[1766949012247,0.00022825,87711.0,87700.0,0.11470397]
[1766949012454,0.0114071,87726.0,87703.0,0.01141]
[1766949012653,0.0114071,87726.0,87705.0,0.00017109]
[1766949013154,0.0114075,87723.0,87706.0,0.11402183]
[1766949013354,0.011408,87719.0,87707.0,0.15416]
[1766949014959,0.12152413,87732.0,87705.0,0.00017109]
[1766949015165,0.0114089,87712.0,87702.0,0.05716]
[1766949015367,0.0114089,87712.0,87700.0,0.05716]
[1766949016858,0.00017075,87715.0,87700.0,0.05716]
[1766949018066,0.00017075,87715.0,87700.0,0.0685704]
[1766949018266,0.00017075,87715.0,87700.0,0.05716]
[1766949019260,0.0114086,87714.0,87700.0,0.05716]
[1766949020862,0.00017075,87715.0,87700.0,0.05716]
[1766949021066,0.00017075,87715.0,87700.0,0.0685704]
[1766949021868,0.00017075,87715.0,87700.0,0.05716]
[1766949025967,0.00017075,87715.0,87700.0,0.0685704]
[1766949026664,0.00017075,87715.0,87704.0,0.0114098]
[1766949026871,0.10493767,87724.0,87707.0,0.0114095]
[1766949027263,0.00793767,87724.0,87711.0,0.0114089]
[1766949027465,0.0114045,87747.0,87708.0,0.05716]
[1766949027466,0.097,87734.0,87716.0,0.0114083]
[1766949027660,0.06149749,87745.0,87724.0,0.0114072]
[1766949027661,0.097,87739.0,87724.0,0.0114072]
[1766949027868,0.05716,87744.0,87724.0,0.0114072]
[1766949028069,0.05716,87744.0,87726.0,0.011407]
[1766949028371,0.011405,87742.0,87725.0,0.05716]
[1766949028666,0.0114054,87739.0,87725.0,0.05716]
[1766949029073,0.0136843,87743.0,87725.0,0.05716]
[1766949029471,0.0136843,87743.0,87725.0,0.0685672]
[1766949030966,0.0022794,87743.0,87725.0,0.0685672]
[1766949032169,0.0022794,87743.0,87728.0,0.0114067]
[1766949032365,1e-07,87743.0,87730.0,0.11470397]
[1766949032570,0.0114038,87751.0,87731.0,0.0114064]
[1766949032774,0.01163154,87755.0,87733.0,0.0114061]
[1766949032974,0.01163154,87755.0,87734.0,0.05716]
[1766949033774,0.01163154,87755.0,87735.0,0.0114058]
[1766949034566,0.01163154,87755.0,87734.0,0.05716]
[1766949036178,0.00022814,87755.0,87734.0,0.0685659]
[1766949036580,0.00022814,87755.0,87740.0,0.11443844]
[1766949036779,0.0114035,87754.0,87741.0,0.05716]
[1766949037079,0.0114035,87754.0,87742.0,0.097]
[1766949037281,0.00022814,87755.0,87742.0,0.097]
[1766949037479,0.01163154,87755.0,87742.0,0.097]
[1766949037779,0.0114028,87759.0,87742.0,0.097]
[1766949037975,0.0114028,87759.0,87742.0,0.09717099]
[1766949040174,0.0114036,87753.0,87742.0,0.09717099]
[1766949040375,0.0114031,87757.0,87742.0,0.09717099]
[1766949040775,0.11443844,87760.0,87742.0,0.00017099]
[1766949040974,0.11443844,87760.0,87743.0,0.11692]
[1766949041174,0.0114048,87743.0,87739.0,0.05712]
[1766949041381,0.11443844,87760.0,87739.0,0.05712]
[1766949042278,0.00017064,87758.0,87741.0,0.00017099]
[1766949043686,0.0114043,87747.0,87741.0,9e-08]
[1766949043870,0.0114048,87744.0,87741.0,9e-08]
[1766949044077,0.0114053,87740.0,87736.0,0.15408]
[1766949044276,0.0114053,87740.0,87735.0,0.05712]
[1766949044884,0.0114043,87748.0,87735.0,0.05712]
[1766949045485,0.0114046,87746.0,87735.0,0.05712]
[1766949046982,0.0114046,87746.0,87736.0,0.05712]
[1766949047387,0.0114053,87740.0,87733.0,0.05712]
[1766949047689,0.0114053,87740.0,87724.0,0.01311434]
[1766949047894,0.0114053,87740.0,87729.0,0.05712]
[1766949048283,0.12584374,87740.0,87720.0,0.0114078]
[1766949048483,0.00017099,87739.0,87721.0,0.15425099]
[1766949048785,0.00017099,87739.0,87721.0,0.26822279]
[1766949049379,0.00017099,87739.0,87704.0,0.0114098]
[1766949049380,0.00017099,87739.0,87701.0,0.01311461]
[1766949049595,0.09696,87756.0,87692.0,0.0114115]
[1766949049596,0.0114073,87724.0,87692.0,0.0114115]
[1766949049887,0.15412,87723.0,87692.0,0.0114115]
[1766949050181,0.15412,87723.0,87696.0,0.0114108]
[1766949050595,0.00017099,87718.0,87701.0,0.00017099]
[1766949053594,0.00017099,87718.0,87708.0,0.11443844]
[1766949053889,0.00017099,87718.0,87701.0,0.00017099]
[1766949055194,0.00017099,87718.0,87702.0,0.01138]
[1766949057095,0.00017099,87718.0,87708.0,0.11443844]
[1766949057388,0.00017099,87718.0,87708.0,0.12584774]
[1766949057592,0.09696,87725.0,87708.0,0.0114093]
[1766949057788,0.15412,87727.0,87711.0,0.011409]
[1766949058190,0.0114055,87739.0,87717.0,0.11443844]
[1766949058395,0.15416,87738.0,87720.0,0.11443844]
[1766949058596,0.15433099,87738.0,87720.0,0.00017099]
[1766949059092,0.15433099,87738.0,87720.0,0.11460943]
[1766949060794,0.15433099,87738.0,87720.0,0.00017099]
[1766949060995,0.15433099,87738.0,87720.0,0.11460943]
[1766949063002,0.15433099,87738.0,87728.0,0.11443844]
[1766949063196,0.00017099,87738.0,87728.0,0.11443844]
[1766949063398,0.03402702,87738.0,87728.0,0.11443844]
[1766949064192,0.03402702,87738.0,87726.0,0.011407]
[1766949064398,0.03402702,87738.0,87728.0,0.11443844]
[1766949065298,0.03402702,87738.0,87725.0,0.0114071]
[1766949067685,0.03402702,87738.0,87728.0,0.11443844]
[1766949068194,0.03402702,87738.0,87721.0,0.0114076]
[1766949068407,0.0114061,87734.0,87720.0,0.11460943]
[1766949068601,0.0114061,87734.0,87720.0,0.00017099]
[1766949068800,0.0114061,87734.0,87721.0,0.05716]
[1766949069699,0.03402702,87738.0,87710.0,0.09696]
[1766949069700,0.0114066,87730.0,87710.0,0.09696]
[1766949069899,0.15412,87729.0,87710.0,0.09696]
[1766949070507,0.0114069,87728.0,87707.0,0.05716]
[1766949070699,0.0114069,87728.0,87709.0,0.00017099]
[1766949070901,0.0114073,87725.0,87709.0,0.00017099]
[1766949071094,0.11443844,87720.0,87697.0,0.0114107]
[1766949071294,0.05716,87719.0,87700.0,0.11443844]
[1766949072101,0.05733099,87719.0,87702.0,0.01155099]
[1766949074290,0.05733099,87719.0,87702.0,0.00017099]
[1766949077908,0.05733099,87719.0,87703.0,0.0114]
[1766949078108,0.0114082,87718.0,87703.0,0.0114]
[1766949079507,0.05733099,87719.0,87703.0,0.0114]
[1766949079703,0.05716,87719.0,87710.0,0.0114091]
[1766949080208,0.05716,87720.0,87710.0,0.0114091]
[1766949083704,0.00017099,87724.0,87710.0,0.0114091]
[1766949084002,0.15416,87723.0,87710.0,0.0114091]
[1766949086807,0.15416,87723.0,87710.0,0.12584754]
[1766949087010,0.15416,87723.0,87706.0,0.0685696]
[1766949087403,0.15416,87723.0,87707.0,0.11400363]
[1766949096811,0.15416,87723.0,87708.0,0.0114093]
[1766949097018,0.0114076,87722.0,87707.0,0.11400363]
[1766949097203,0.0114076,87722.0,87706.0,0.05716]
[1766949097609,0.0114076,87722.0,87707.0,0.11400558]
[1766949100126,0.0114076,87722.0,87706.0,0.05716]
[1766949100326,0.0114079,87720.0,87706.0,0.05716]
[1766949100933,0.1655675,87723.0,87706.0,0.05716]
[1766949106430,0.00017099,87724.0,87711.0,0.0114089]
[1766949106730,0.05716,87725.0,87720.0,0.0114078]
[1766949106932,0.05716,87726.0,87720.0,0.0114078]
[1766949107328,0.05716,87726.0,87716.0,0.0114083]
[1766949107527,0.05716,87726.0,87713.0,0.0114087]
[1766949108824,0.05716,87726.0,87711.0,0.00017099]
[1766949109539,0.0685671,87726.0,87711.0,0.00017099]
[1766949110934,0.05716,87726.0,87711.0,0.00017099]
[1766949113940,0.05716,87726.0,87712.0,0.0114088]
[1766949114829,0.05716,87726.0,87714.0,0.0114085]
[1766949115034,0.05716,87726.0,87717.0,0.0114082]
[1766949115238,0.05716,87726.0,87715.0,0.0114085]
[1766949117541,0.05716,87726.0,87711.0,0.00017099]
[1766949119443,0.0685671,87726.0,87707.0,0.06856]
[1766949119637,0.0114074,87723.0,87707.0,0.06856]
[1766949120656,0.05716,87726.0,87707.0,0.06856]
[1766949120942,0.0114076,87723.0,87707.0,0.06856]
[1766949121443,0.0114084,87716.0,87694.0,0.0114112]
[1766949121643,0.0685284,87716.0,87694.0,0.0685312]
[1766949121839,0.0685284,87716.0,87696.0,0.11400558]
[1766949122039,0.0685284,87716.0,87694.0,0.0685312]
[1766949122347,0.0685284,87716.0,87695.0,0.11401858]
[1766949122642,0.0685284,87716.0,87697.0,0.00017099]
[1766949125536,0.0114088,87713.0,87697.0,0.00017099]
[1766949125741,0.0114088,87713.0,87692.0,0.05716]
[1766949125934,0.05712,87716.0,87692.0,0.05716]
[1766949126141,0.05712,87716.0,87680.0,0.06135841]
[1766949126142,0.0114097,87706.0,87687.0,0.11401858]
[1766949126443,0.05716,87705.0,87685.0,0.0114124]
[1766949126639,0.00017099,87704.0,87686.0,0.00017099]
[1766949127546,0.00017099,87704.0,87687.0,0.011412]
[1766949127740,0.00017099,87704.0,87686.0,0.00017099]
[1766949128544,0.00017099,87704.0,87687.0,0.0114121]
[1766949129946,0.00017099,87704.0,87689.0,0.0114117]
[1766949130341,0.00017099,87704.0,87698.0,0.0114106]
[1766949130342,9e-08,87704.0,87698.0,0.0114106]
[1766949130536,9e-08,87705.0,87701.0,0.0114102]
[1766949130742,0.05716,87706.0,87701.0,0.0114102]
[1766949130948,0.05716009,87707.0,87701.0,0.0114102]
[1766949131150,9e-08,87707.0,87701.0,0.0114102]
[1766949131842,9e-08,87707.0,87696.0,0.0114108]
[1766949132246,9e-08,87707.0,87699.0,0.0114105]
[1766949133353,9e-08,87707.0,87695.0,0.011411]
[1766949133951,9e-08,87707.0,87691.0,0.0114115]
[1766949134655,9e-08,87707.0,87686.0,0.00017099]
[1766949136251,9e-08,87707.0,87693.0,0.0114113]
[1766949140256,9e-08,87707.0,87689.0,0.0114117]
[1766949143654,9e-08,87707.0,87692.0,0.0114115]
[1766949145957,9e-08,87707.0,87694.0,0.0114111]
[1766949146371,9e-08,87707.0,87686.0,0.00017099]
[1766949146565,9e-08,87707.0,87697.0,0.0114107]
[1766949148866,9e-08,87707.0,87694.0,0.0114112]
[1766949149561,9e-08,87707.0,87695.0,0.01138]
[1766949173495,9e-08,87707.0,87693.0,0.0114113]
[1766949177698,9e-08,87707.0,87694.0,0.01138]
[1766949187799,0.06149758,87707.0,87694.0,0.01138]
[1766949190802,0.0552,87706.0,87695.0,0.0114111]
[1766949193708,0.0552,87706.0,87694.0,0.01138]
[1766949193905,0.0552,87706.0,87692.0,0.0114115]
[1766949194900,0.05716,87708.0,87694.0,0.0114111]
[1766949196613,0.05716,87708.0,87695.0,0.01138]
[1766949207711,0.05716,87708.0,87696.0,0.0114109]
[1766949207904,0.05716,87708.0,87695.0,0.022791]
[1766949208096,0.05716,87708.0,87698.0,0.11457164]
[1766949210211,0.05716,87711.0,87701.0,0.0114102]
[1766949210414,0.00017099,87713.0,87707.0,0.0114094]
[1766949210602,0.00017099,87713.0,87698.0,0.11457164]
[1766949210910,9e-08,87713.0,87707.0,0.0114094]
[1766949211498,0.06156153,87719.0,87708.0,0.01138]
[1766949211499,0.05716,87719.0,87708.0,0.01138]
[1766949220316,0.11872153,87719.0,87708.0,0.01138]
[1766949223815,0.11872153,87719.0,87706.0,0.0114096]
[1766949226015,0.11872153,87719.0,87705.0,0.00017099]
[1766949227719,0.06156153,87715.0,87705.0,0.00017099]
[1766949227920,0.06156153,87715.0,87706.0,0.01138]
[1766949228219,0.06156153,87715.0,87706.0,0.00076762]
[1766949229014,3e-08,87715.0,87707.0,0.0114095]
[1766949229219,0.00017099,87722.0,87710.0,0.011409]
[1766949236226,0.00017099,87722.0,87713.0,0.0114087]
[1766949237621,0.00017099,87722.0,87705.0,0.00017099]
[1766949238520,0.00017099,87722.0,87708.0,0.0114094]
[1766949240524,0.00017099,87722.0,87712.0,0.0114088]
[1766949241729,0.00017099,87722.0,87709.0,0.0114092]
[1766949242834,0.00017099,87722.0,87705.0,0.00017099]
[1766949244233,0.00017099,87722.0,87706.0,0.0114096]
[1766949249742,0.00017099,87722.0,87708.0,0.0114093]
[1766949257546,0.00017099,87722.0,87709.0,0.00077]
[1766949258842,0.097,87729.0,87709.0,0.00077]
[1766949258843,0.0114059,87735.0,87717.0,0.0114081]
[1766949259048,0.0114059,87735.0,87710.0,0.26812493]
[1766949259049,0.011407,87727.0,87710.0,0.26812493]
[1766949259251,0.05712,87734.0,87709.0,0.00077]
[1766949259449,0.05712,87734.0,87710.0,0.05712]
[1766949259648,0.0114073,87725.0,87710.0,0.05712]
[1766949260152,0.00017099,87726.0,87710.0,0.05712]
[1766949262550,0.00017099,87726.0,87711.0,0.011409]
[1766949273462,0.00017099,87726.0,87710.0,0.05712]
[1766949273653,0.00017099,87726.0,87715.0,0.0114084]
[1766949274857,0.00017099,87726.0,87711.0,0.011409]
[1766949282261,0.00017099,87726.0,87712.0,0.00076]
[1766949282655,0.00017099,87726.0,87713.0,0.0114087]
[1766949282865,0.00017099,87726.0,87714.0,0.05712]
[1766949287467,0.00017099,87726.0,87713.0,0.0114087]
[1766949287667,0.00017099,87726.0,87714.0,0.05712]
[1766949293275,0.00017099,87726.0,87713.0,0.0114087]
[1766949293472,0.00017099,87726.0,87714.0,0.05712]
[1766949294468,0.00017099,87726.0,87713.0,0.0114087]
[1766949294668,0.00017099,87726.0,87713.0,0.0685287]
[1766949295276,0.00017099,87726.0,87713.0,0.05712]
[1766949300477,0.00017099,87726.0,87712.0,0.00076]
[1766949301177,0.0114072,87725.0,87712.0,0.00076]
[1766949301476,0.00017099,87726.0,87702.0,0.0114102]
[1766949301477,0.11451038,87722.0,87702.0,0.0114102]
[1766949301778,0.0114077,87721.0,87702.0,0.0114102]
[1766949301960,0.02168598,87721.0,87702.0,0.0114102]
[1766949302161,0.0114077,87721.0,87702.0,0.0114102]
[1766949302370,0.0114077,87721.0,87703.0,0.00017099]
[1766949302570,0.01027828,87720.0,87703.0,0.00017099]
[1766949308781,0.0114077,87721.0,87703.0,0.00017099]
[1766949313280,0.21151038,87722.0,87703.0,0.00017099]
[1766949314179,0.0114081,87719.0,87703.0,0.00017099]
[1766949316174,0.11451038,87720.0,87703.0,0.00017099]
[1766949318685,0.1084076,87722.0,87703.0,0.00017099]
[1766949318886,0.11451038,87720.0,87703.0,0.00017099]
[1766949331693,0.11451038,87713.0,87688.0,0.04107896]
[1766949331891,0.11451038,87710.0,87688.0,0.15412]
[1766949332091,0.05712,87709.0,87688.0,0.15412]
[1766949332394,0.05712,87709.0,87690.0,0.0114117]
[1766949332784,0.00017099,87708.0,87691.0,0.00017099]
[1766949333892,0.0114096,87707.0,87691.0,0.00017099]
[1766949334088,0.11451038,87701.0,87691.0,0.00017099]
[1766949334288,0.11451038,87701.0,87685.0,0.15412]
[1766949334593,0.11451038,87701.0,87683.0,0.00228096]
[1766949334594,0.11451038,87701.0,87684.0,0.05712]
[1766949334789,0.0114102,87702.0,87684.0,0.05712]
[1766949334995,0.11451038,87700.0,87684.0,0.05712]
[1766949335194,0.11451038,87700.0,87683.0,0.00245195]
[1766949335383,0.11451038,87700.0,87683.0,0.05957195]
[1766949335998,0.0114106,87699.0,87683.0,0.00245195]
[1766949342203,0.0114109,87697.0,87683.0,0.00245195]
[1766949342502,0.05712,87696.0,87683.0,0.00245195]
[1766949353526,0.05712,87696.0,87679.0,0.0114131]
[1766949354015,0.05712,87696.0,87678.0,0.15412]
[1766949354216,0.05712,87696.0,87682.0,0.0114127]
[1766949358525,0.02412159,87695.0,87682.0,0.0114127]
[1766949358726,0.02412159,87694.0,87682.0,0.0114127]
[1766949358921,0.05712,87696.0,87682.0,0.0114127]
[1766949359123,0.02412159,87695.0,87682.0,0.0114127]
[1766949359327,0.02412159,87694.0,87682.0,0.0114127]
[1766949359530,0.02412159,87693.0,87682.0,0.0114127]
[1766949359818,0.05712,87696.0,87680.0,0.00011433]
[1766949360025,0.02412879,87695.0,87680.0,0.00011433]
[1766949360221,0.02412879,87694.0,87680.0,0.00011433]
[1766949360422,0.02412879,87693.0,87680.0,0.01152733]
[1766949360622,0.05712,87696.0,87680.0,0.01152733]
[1766949360822,0.02413804,87695.0,87682.0,0.0114127]
[1766949361125,0.02413804,87694.0,87682.0,0.0114127]
[1766949361318,0.02413804,87693.0,87682.0,0.0114127]
[1766949361518,0.02413804,87692.0,87682.0,0.0114127]
[1766949361825,0.02413804,87691.0,87682.0,0.0114127]
[1766949362026,0.05712,87696.0,87682.0,0.0114127]
[1766949362228,0.02415402,87695.0,87682.0,0.0114127]
[1766949362527,0.02415402,87694.0,87682.0,0.0114127]
[1766949362727,0.02415402,87693.0,87682.0,0.0114127]
[1766949362926,0.02415402,87692.0,87682.0,0.0114127]
[1766949363120,0.02415402,87691.0,87682.0,0.0114127]
[1766949363323,0.02415402,87690.0,87682.0,0.0114127]
[1766949363523,0.05712,87696.0,87682.0,0.0114127]
[1766949363728,0.02416233,87695.0,87682.0,0.0114127]
[1766949363913,0.02416233,87694.0,87682.0,0.0114127]
[1766949364118,0.02416233,87693.0,87680.0,0.01152733]
[1766949364318,0.02416233,87692.0,87680.0,0.00011433]
[1766949364520,0.02416233,87691.0,87680.0,0.00011433]
[1766949364721,0.02416233,87690.0,87680.0,0.00011433]
[1766949365026,0.0114112,87695.0,87680.0,0.00011433]
[1766949365227,0.02416532,87694.0,87680.0,0.00011433]
[1766949365420,0.02416532,87693.0,87681.0,0.0114129]
[1766949365622,0.02416532,87692.0,87681.0,0.0114129]
[1766949365823,0.02416532,87691.0,87681.0,0.0114129]
[1766949366130,0.02416532,87690.0,87681.0,0.0114129]
[1766949366320,0.05712,87696.0,87681.0,0.0114129]
[1766949366520,0.02416626,87695.0,87681.0,0.0114129]
[1766949366720,0.02416626,87694.0,87681.0,0.0114129]
[1766949366920,0.02416626,87693.0,87681.0,0.0114129]
[1766949367120,0.02416626,87692.0,87681.0,0.0114129]
[1766949367330,0.02416626,87691.0,87681.0,0.0114129]
[1766949367530,0.02416626,87690.0,87681.0,0.0114129]
[1766949367731,0.02416627,87689.0,87681.0,0.0114129]
[1766949367924,0.02416627,87688.0,87681.0,0.0114129]
[1766949368124,0.05712,87696.0,87681.0,0.0114129]
[1766949368323,0.02416629,87695.0,87681.0,0.0114129]
[1766949368631,0.02416629,87694.0,87681.0,0.0114129]
[1766949368832,0.05712,87696.0,87681.0,0.0114129]
[1766949368833,0.02416629,87693.0,87681.0,0.0114129]
[1766949369031,0.02416629,87692.0,87681.0,0.0114129]
[1766949369230,0.02416629,87691.0,87681.0,0.0114129]
[1766949369432,0.02416629,87690.0,87681.0,0.0114129]
[1766949369634,0.02416629,87689.0,87681.0,0.0114129]
[1766949369828,9e-08,87688.0,87681.0,0.0114129]
[1766949370030,0.05712,87696.0,87681.0,0.0114129]
[1766949373839,0.05712,87696.0,87684.0,0.0114125]
[1766949375142,0.05712,87696.0,87681.0,0.0114129]
[1766949381935,0.0240616,87695.0,87681.0,0.0114129]
[1766949382142,0.0240616,87694.0,87681.0,0.0114129]
[1766949382342,0.0240616,87693.0,87681.0,0.0114129]
[1766949382532,0.0240616,87692.0,87681.0,0.0114129]
[1766949382735,0.0240616,87691.0,87683.0,0.0114125]
[1766949382938,0.0240616,87690.0,87683.0,0.0114125]
[1766949383144,0.05712,87696.0,87683.0,0.0114125]
[1766949383346,0.02406159,87695.0,87683.0,0.0114125]
[1766949383542,0.02406159,87694.0,87683.0,0.0114125]
[1766949383745,0.02406159,87693.0,87683.0,0.0114125]
[1766949383945,0.02406159,87692.0,87683.0,0.0114125]
[1766949384147,0.02406159,87691.0,87683.0,0.0114125]
[1766949384345,0.02406159,87690.0,87683.0,0.0114125]
[1766949384550,0.02406159,87689.0,87683.0,0.0114125]
[1766949384738,0.05712,87696.0,87683.0,0.0114125]
[1766949384938,0.02406158,87695.0,87683.0,0.0114125]
[1766949385139,0.02406158,87694.0,87683.0,0.0114125]
[1766949385340,0.02406158,87693.0,87683.0,0.0114125]
[1766949385543,0.02406158,87692.0,87683.0,0.0114125]
[1766949385840,0.02406158,87691.0,87683.0,0.0114125]
[1766949386042,0.02406158,87690.0,87683.0,0.0114125]
[1766949386244,1e-08,87689.0,87685.0,0.0114123]
[1766949386438,0.15412,87701.0,87680.0,0.00011433]
[1766949386643,0.15412,87701.0,87681.0,0.11404068]
[1766949388845,0.15412,87701.0,87682.0,0.097]
[1766949389047,0.05712,87701.0,87682.0,0.097]
[1766949389453,0.05712,87701.0,87686.0,0.0114121]
[1766949393357,0.05712,87701.0,87689.0,0.0114118]
[1766949398258,0.05712,87701.0,87682.0,0.097]
[1766949399254,0.05712,87701.0,87687.0,0.011412]
[1766949399458,0.05712,87701.0,87689.0,0.0114118]
[1766949417674,0.05712,87701.0,87682.0,0.097]
[1766949419074,0.05712,87701.0,87688.0,0.0114119]
[1766949420067,0.05712,87705.0,87690.0,0.12600217]
[1766949421976,0.05712,87705.0,87690.0,0.0114116]
[1766949422280,0.05712,87705.0,87690.0,0.12600217]
[1766949422576,0.05712,87705.0,87690.0,0.0114116]
[1766949422779,0.05712,87705.0,87690.0,0.12600217]
[1766949425393,0.05712,87705.0,87690.0,0.11459057]
[1766949426093,0.05712,87705.0,87691.0,0.0114116]
[1766949433196,0.05712,87705.0,87692.0,0.05712]
[1766949435996,0.22918114,87702.0,87680.0,0.00011433]
[1766949436190,0.0114107,87698.0,87681.0,0.05712]
[1766949436389,0.0685307,87698.0,87681.0,0.05712]
[1766949439597,0.05712,87698.0,87681.0,0.05712]
[1766949442400,0.05712,87698.0,87681.0,0.0685328]
[1766949455311,0.05712,87698.0,87683.0,0.0114126]
[1766949464114,0.11869423,87698.0,87683.0,0.0114126]
[1766949467620,0.05712,87698.0,87683.0,0.0114126]
[1766949471207,0.02394941,87697.0,87682.0,0.05712]
[1766949471412,0.02394941,87696.0,87682.0,0.05712]
[1766949471609,0.02394941,87695.0,87682.0,0.05712]
[1766949471825,0.02394941,87694.0,87682.0,0.05712]
[1766949472017,0.02394941,87693.0,87682.0,0.05712]
[1766949472215,0.02394941,87692.0,87682.0,0.05712]
[1766949472415,0.02394941,87691.0,87682.0,0.05712]
[1766949472615,0.02394941,87690.0,87682.0,0.05712]
[1766949472819,0.02394941,87689.0,87682.0,0.05712]
[1766949473019,0.05712,87698.0,87682.0,0.05712]
[1766949473223,0.02394838,87697.0,87682.0,0.05712]
[1766949473416,0.02394838,87696.0,87682.0,0.05712]
[1766949473618,0.02394838,87695.0,87682.0,0.05712]
[1766949473819,0.02394838,87694.0,87682.0,0.05712]
[1766949474020,0.02394838,87693.0,87683.0,0.0114126]
[1766949474220,0.02394838,87692.0,87683.0,0.0114126]
[1766949474426,0.02394838,87691.0,87683.0,0.0114126]
[1766949474619,0.02394838,87690.0,87683.0,0.0114126]
[1766949474819,8e-08,87689.0,87683.0,0.0114126]
[1766949475020,0.05712,87698.0,87683.0,0.0114126]
[1766949478222,0.05712,87698.0,87685.0,0.0114123]
[1766949482533,0.05712,87698.0,87682.0,0.0685327]
[1766949485833,0.05712,87698.0,87686.0,0.0114122]
[1766949490237,0.05712,87698.0,87683.0,0.0114126]
[1766949493141,0.05712,87698.0,87686.0,0.0114122]
[1766949497938,0.06157423,87697.0,87686.0,0.0114122]
[1766949503949,0.06157423,87697.0,87682.0,0.05712]
[1766949504134,3e-08,87698.0,87693.0,0.0114112]
[1766949504439,3e-08,87698.0,87682.0,0.05712]
[1766949504641,3e-08,87698.0,87688.0,0.011412]
[1766949510146,3e-08,87698.0,87680.0,0.09711433]
[1766949511163,3e-08,87698.0,87689.0,0.0114118]
[1766949517271,3e-08,87698.0,87686.0,0.0114122]
[1766949518273,3e-08,87698.0,87688.0,0.0114119]
[1766949518569,0.097,87707.0,87688.0,0.0114119]
[1766949518570,0.05712,87704.0,87688.0,0.0114119]
[1766949518970,0.06853,87704.0,87680.0,0.09711433]
[1766949519171,0.05712,87704.0,87680.0,0.09711433]
[1766949520171,0.0114103,87702.0,87682.0,0.0114128]
[1766949521874,0.0114103,87702.0,87684.0,0.0114124]
[1766949523173,0.05712,87704.0,87686.0,0.0114122]
[1766949525273,0.11459615,87700.0,87686.0,0.0114122]
[1766949525776,0.11459615,87700.0,87683.0,0.0114126]
[1766949532482,0.11459615,87700.0,87680.0,0.21171048]
[1766949532483,0.0114106,87699.0,87680.0,0.22312348]
[1766949532877,0.11459615,87700.0,87683.0,0.0114126]
[1766949533876,0.0114102,87702.0,87683.0,0.0114126]
[1766949535086,0.097,87701.0,87683.0,0.0114126]
[1766949535276,0.11459615,87700.0,87683.0,0.0114126]
[1766949535885,0.097,87701.0,87683.0,0.0114126]
[1766949536484,0.097,87701.0,87685.0,0.0114123]
[1766949537378,0.097,87701.0,87680.0,0.21171048]
[1766949537584,0.0114106,87699.0,87680.0,0.22312338]
[1766949538387,0.02394522,87698.0,87680.0,0.22312338]
[1766949538572,0.02394522,87697.0,87680.0,0.22312338]
[1766949538776,0.02394522,87696.0,87680.0,0.22312338]
[1766949539071,0.02394522,87695.0,87680.0,0.22312338]
[1766949539284,0.02394522,87694.0,87680.0,0.22312338]
[1766949539479,0.02394522,87693.0,87680.0,0.22312338]
[1766949539684,0.02394522,87692.0,87680.0,0.21171048]
[1766949539877,0.02394522,87691.0,87680.0,0.21171048]
[1766949540077,0.02394522,87690.0,87680.0,0.21171048]
[1766949540279,0.02394522,87689.0,87680.0,0.21171048]
[1766949540479,0.02394522,87688.0,87680.0,0.21171048]
[1766949540677,0.0114109,87697.0,87680.0,0.21171048]
[1766949540877,0.02394519,87696.0,87680.0,0.21171048]
[1766949541073,0.02394519,87695.0,87680.0,0.21171048]
[1766949541273,0.02394519,87694.0,87680.0,0.21171048]
[1766949541478,0.02394519,87693.0,87680.0,0.21171048]
[1766949541689,0.02394519,87692.0,87680.0,0.21171048]
[1766949541879,0.02394519,87691.0,87680.0,0.21171048]
[1766949542078,0.02394519,87690.0,87680.0,0.21171048]
[1766949542278,0.02394519,87689.0,87680.0,0.21171048]
[1766949542575,0.02394527,87688.0,87672.0,0.0114141]
[1766949542789,0.02394527,87687.0,87668.0,0.0685345]
[1766949542983,0.02394527,87686.0,87671.0,0.0114142]
[1766949543284,0.02394527,87685.0,87671.0,0.0114142]
[1766949543484,0.02394527,87684.0,87671.0,0.0114142]
[1766949543787,0.02394527,87683.0,87671.0,0.0114142]
[1766949543985,0.02394527,87682.0,87671.0,0.0114142]
[1766949544290,0.02394527,87681.0,87671.0,0.0114142]